bitfinex-derivatives/quotes_BTCF0:USTF0_20241125
["timestamp","ask_amount","ask_price","bid_price","bid_amount"]
[1732503390482,0.17045865,97501.0,97500.0,0.0004]
[1732503391076,0.17047078,97501.0,97500.0,0.0004]
[1732503391288,0.31131078,97501.0,97500.0,0.0004]
[1732503392983,0.31126842,97501.0,97500.0,0.0004]
[1732503394087,0.31126842,97501.0,97500.0,0.18492227]
[1732503395177,0.31126943,97501.0,97500.0,0.18492227]
[1732503395377,0.31126943,97501.0,97500.0,0.0004]
[1732503396571,0.28275943,97501.0,97500.0,0.0004]
[1732503397586,0.14191943,97501.0,97500.0,0.0004]
[1732503397781,0.28275943,97501.0,97500.0,0.0004]
[1732503399300,0.23293336,97501.0,97500.0,0.24641133]
[1732503399679,0.28275741,97501.0,97500.0,0.0004]
[1732503403595,0.46715002,97501.0,97500.0,0.0004]
[1732503403787,0.28275741,97501.0,97500.0,0.18491573]
[1732503405989,0.28275741,97501.0,97500.0,0.0004]
[1732503406582,0.4671505,97501.0,97500.0,0.0004]
[1732503406784,0.24579036,97501.0,97500.0,0.0004]
[1732503406986,0.09209336,97501.0,97500.0,0.0004]
[1732503407785,0.24579036,97501.0,97500.0,0.0004]
[1732503408394,0.09209336,97501.0,97500.0,0.0004]
[1732503413393,0.23293336,97501.0,97500.0,0.0004]
[1732503414399,0.38663036,97501.0,97500.0,0.0004]
[1732503415899,0.23293336,97501.0,97500.0,0.24641744]
[1732503417501,0.2329513,97501.0,97500.0,0.24641744]
[1732503418201,0.38660955,97501.0,97500.0,0.0004]
[1732503418399,0.38660696,97501.0,97500.0,0.0004]
[1732503418899,0.00497171,97501.0,97500.0,0.051628]
[1732503419297,0.00497171,97501.0,97500.0,0.64678913]
[1732503420195,0.12791163,97501.0,97500.0,0.64633239]
[1732503420399,0.05619871,97501.0,97500.0,0.64633239]
[1732503420596,0.05619871,97501.0,97500.0,0.35911951]
[1732503421819,0.10601928,97501.0,97500.0,0.051628]
[1732503424211,0.10601928,97501.0,97500.0,0.051228]
[1732503425010,0.10101928,97501.0,97500.0,0.051228]
[1732503425308,0.10101928,97501.0,97495.0,0.24600382]
[1732503425309,0.051231,97493.0,97492.0,0.24600999]
[1732503425511,0.54678057,97493.0,97487.0,0.18451292]
[1732503425705,0.051234,97488.0,97480.0,0.18451292]
[1732503425904,0.051234,97488.0,97470.0,0.36659151]
[1732503425905,0.05124,97477.0,97472.0,0.18451292]
[1732503426100,0.051244,97469.0,97466.0,0.18451292]
[1732503426311,0.23559435,97467.0,97465.0,0.18451292]
[1732503426504,0.23559435,97467.0,97464.0,0.051246]
[1732503426505,0.04982057,97466.0,97464.0,0.051246]
[1732503426711,0.05022057,97466.0,97464.0,0.051246]
[1732503427009,0.05022057,97465.0,97464.0,0.051246]
[1732503427813,0.05022057,97465.0,97462.0,0.24600999]
[1732503428005,0.04982057,97464.0,97461.0,0.24600999]
[1732503428206,0.051248,97462.0,97461.0,0.24600999]
[1732503428412,0.15404855,97462.0,97461.0,0.051248]
[1732503428708,0.0004,97462.0,97461.0,0.051248]
[1732503428909,0.15405696,97462.0,97461.0,0.2973438]
[1732503429302,0.051248,97461.0,97459.0,0.00010775]
[1732503429502,0.20489035,97461.0,97460.0,0.24609381]
[1732503429707,0.0004,97460.0,97459.0,0.24620156]
[1732503429902,0.0004,97460.0,97459.0,0.28902781]
[1732503432417,0.12330686,97460.0,97459.0,0.28902781]
[1732503432617,0.12330686,97460.0,97459.0,0.00010775]
[1732503432618,0.0004,97460.0,97459.0,0.00010775]
[1732503432917,0.0004,97460.0,97459.0,0.30775228]
[1732503432918,0.12328792,97460.0,97459.0,0.30775228]
[1732503433112,0.12328792,97460.0,97459.0,0.59896556]
[1732503433506,0.12328792,97460.0,97459.0,0.59896551]
[1732503433814,0.12328792,97460.0,97459.0,0.29132098]
[1732503434008,0.0004,97460.0,97459.0,0.30775075]
[1732503434320,0.12328076,97460.0,97459.0,0.30775075]
[1732503434514,0.3612,97460.0,97459.0,0.00010775]
[1732503436117,0.37399917,97460.0,97459.0,0.00010775]
[1732503436314,0.3612,97460.0,97459.0,0.00010775]
[1732503438020,0.36895323,97460.0,97459.0,0.00010775]
[1732503440821,0.42020223,97460.0,97459.0,0.00010775]
[1732503441718,0.05449375,97460.0,97459.0,0.05135675]
[1732503441914,0.05449375,97460.0,97459.0,0.00010775]
[1732503445112,0.19069375,97460.0,97459.0,0.00010775]
[1732503445709,0.19079342,97460.0,97459.0,0.00010775]
[1732503445919,0.051252,97454.0,97452.0,0.307643]
[1732503446222,0.051252,97454.0,97451.0,0.18461602]
[1732503446223,0.051253,97452.0,97451.0,0.18461602]
[1732503446424,0.4294936,97452.0,97450.0,0.18461602]
[1732503446717,0.187453,97452.0,97451.0,0.18461602]
[1732503446917,0.24521417,97452.0,97451.0,0.18461602]
[1732503447116,0.051258,97442.0,97440.0,0.307643]
[1732503447312,0.13077295,97441.0,97440.0,0.307643]
[1732503447918,0.13117295,97441.0,97440.0,0.307643]
[1732503448317,0.00830904,97441.0,97440.0,0.307643]
[1732503448621,0.00830904,97441.0,97439.0,0.307643]
[1732503448816,0.05916804,97440.0,97439.0,0.307643]
[1732503449023,0.05956804,97440.0,97439.0,0.307643]
[1732503449214,0.05956804,97440.0,97438.0,0.307643]
[1732503449417,0.00790904,97439.0,97438.0,0.307643]
[1732503449616,0.00830904,97439.0,97438.0,0.307643]
[1732503449813,0.05126,97438.0,97437.0,0.30775809]
[1732503450014,0.18202312,97438.0,97437.0,0.58596202]
[1732503450323,0.18242312,97438.0,97437.0,0.58596202]
[1732503450519,0.18242312,97438.0,97437.0,0.30775809]
[1732503450915,0.18242312,97438.0,97437.0,0.58584874]
[1732503451514,0.18242312,97438.0,97437.0,0.30775809]
[1732503452126,0.05956904,97438.0,97437.0,0.00011509]
[1732503453026,0.05950533,97438.0,97437.0,0.00011509]
[1732503454315,0.05950533,97438.0,97437.0,0.30775809]
[1732503454521,0.05950533,97438.0,97437.0,0.00011509]
[1732503454727,0.07230261,97438.0,97437.0,0.00011509]
[1732503454923,0.21308522,97438.0,97437.0,0.00011509]
[1732503455120,0.10936136,97438.0,97437.0,0.00011509]
[1732503455625,0.05950533,97438.0,97437.0,0.00011509]
[1732503457923,0.051261,97437.0,97436.0,0.1846418]
[1732503458123,0.051261,97437.0,97433.0,0.00153909]
[1732503458124,0.051261,97436.0,97434.0,0.1846418]
[1732503458423,0.051264,97431.0,97430.0,0.1846418]
[1732503458622,0.051264,97431.0,97428.0,0.1846418]
[1732503458623,0.051265,97429.0,97428.0,0.1846418]
[1732503458824,0.05770342,97429.0,97424.0,0.1846418]
[1732503459016,0.3608,97426.0,97418.0,0.1846418]
[1732503459218,0.18428448,97419.0,97416.0,0.18468702]
[1732503459420,0.00784533,97418.0,97417.0,0.18468702]
[1732503459618,0.0004,97417.0,97410.0,0.00012182]
[1732503459825,0.01279723,97412.0,97410.0,0.00012182]
[1732503460128,0.00824533,97411.0,97410.0,0.00012182]
[1732503461022,0.04104533,97411.0,97410.0,0.00012182]
[1732503461231,0.04104533,97411.0,97400.0,0.037535]
[1732503461232,0.051278,97404.0,97400.0,0.037535]
[1732503461420,0.051278,97404.0,97366.0,0.051298]
[1732503461421,0.57570366,97401.0,97354.0,0.36908326]
[1732503461618,0.12279225,97361.0,97355.0,0.31053064]
[1732503461924,0.3608,97368.0,97355.0,0.31053064]
[1732503461925,0.13063758,97360.0,97356.0,0.28003064]
[1732503462120,0.00010606,97360.0,97357.0,0.00012133]
[1732503463927,0.051302,97359.0,97357.0,0.00012133]
[1732503464128,0.00777639,97358.0,97357.0,0.00012133]
[1732503464327,0.051302,97359.0,97357.0,0.00012133]
[1732503464630,0.00010606,97360.0,97359.0,0.00089]
[1732503464821,0.00010606,97360.0,97359.0,0.57366549]
[1732503465016,0.09210037,97361.0,97360.0,0.00065394]
[1732503465220,0.04073717,97375.0,97360.0,0.00065394]
[1732503465221,0.09144643,97362.0,97360.0,0.31684649]
[1732503465430,0.12279476,97368.0,97361.0,0.26554549]
[1732503465618,0.12217477,97368.0,97362.0,0.26554549]
[1732503465927,0.051297,97369.0,97367.0,0.0008]
[1732503466136,8.743e-05,97368.0,97367.0,0.0008]
[1732503466319,8.743e-05,97368.0,97359.0,0.412102]
[1732503466516,8.743e-05,97368.0,97360.0,0.26958489]
[1732503466724,8.743e-05,97368.0,97361.0,0.26958489]
[1732503466925,8.743e-05,97368.0,97362.0,0.32088489]
[1732503467128,8.743e-05,97368.0,97363.0,0.30138489]
[1732503467330,8.743e-05,97368.0,97364.0,0.26958489]
[1732503467630,8.743e-05,97368.0,97365.0,0.26958489]
[1732503467818,8.743e-05,97368.0,97366.0,0.051298]
[1732503468018,0.17400955,97378.0,97368.0,0.00018257]
[1732503468329,0.15347028,97379.0,97378.0,0.00018257]
[1732503468631,0.17381643,97379.0,97378.0,0.0008]
[1732503469024,0.17391589,97379.0,97378.0,0.0008]
[1732503469222,0.15338938,97379.0,97378.0,0.0008]
[1732503469425,9.946e-05,97379.0,97378.0,0.052092]
[1732503469622,0.15491852,97399.0,97379.0,0.005]
[1732503469623,0.01278922,97391.0,97379.0,0.005]
[1732503469827,0.01278922,97396.0,97391.0,0.051285]
[1732503470133,0.00774947,97395.0,97391.0,0.083485]
[1732503470328,0.00774947,97394.0,97391.0,0.083485]
[1732503470528,0.051285,97392.0,97391.0,0.0322]
[1732503470826,0.05903447,97392.0,97391.0,0.0322]
[1732503471224,0.049296,97390.0,97380.0,0.11339]
[1732503471425,0.00774947,97389.0,97381.0,0.26565396]
[1732503471621,0.051288,97385.0,97380.0,0.08299]
[1732503472327,0.050288,97385.0,97380.0,0.08299]
[1732503472531,0.0004,97381.0,97380.0,0.082991]
[1732503472828,0.0004,97381.0,97380.0,0.3494224]
[1732503474137,0.0004,97381.0,97380.0,0.082991]
[1732503475825,0.0004,97381.0,97380.0,0.34770973]
[1732503477029,0.00011139,97393.0,97382.0,0.05129]
[1732503477223,0.00011139,97393.0,97392.0,0.051285]
[1732503477426,0.13704,97399.0,97393.0,0.00448861]
[1732503477632,0.04538644,97396.0,97395.0,0.051283]
[1732503478431,0.0454759,97396.0,97395.0,0.051283]
[1732503480340,8.946e-05,97396.0,97395.0,0.051283]
[1732503480525,0.19697753,97407.0,97396.0,0.00491054]
[1732503480836,0.186077,97407.0,97395.0,0.051283]
[1732503481332,0.0004,97396.0,97395.0,0.051283]
[1732503481532,0.00011081,97404.0,97396.0,0.00361]
[1732503481725,0.0319,97409.0,97408.0,0.051276]
[1732503481931,0.07967682,97409.0,97408.0,0.051276]
[1732503482129,0.07768681,97409.0,97408.0,0.051276]
[1732503482736,0.07777402,97409.0,97408.0,0.051276]
[1732503483233,0.07476402,97409.0,97408.0,0.051276]
[1732503483635,0.08269548,97409.0,97408.0,0.051276]
[1732503483938,0.051278,97404.0,97403.0,0.052878]
[1732503484235,0.06933153,97404.0,97403.0,0.0016]
[1732503484440,0.20609153,97404.0,97380.0,0.0317]
[1732503484641,0.051286,97390.0,97388.0,0.051286]
[1732503484838,0.01765353,97389.0,97388.0,0.051286]
[1732503485139,0.00793146,97389.0,97388.0,0.051286]
[1732503486232,0.01278963,97397.0,97395.0,0.051283]
[1732503486437,0.00795895,97396.0,97395.0,0.051283]
[1732503487036,0.01765834,97396.0,97395.0,0.051283]
[1732503487632,0.01265834,97396.0,97395.0,0.051283]
[1732503488040,0.00295895,97396.0,97395.0,0.051283]
[1732503489137,0.01278963,97400.0,97398.0,0.051281]
[1732503489346,0.49756,97417.0,97400.0,0.05128]
[1732503489638,8.721e-05,97409.0,97408.0,0.051276]
[1732503490443,0.0332,97419.0,97409.0,0.00492279]
[1732503490641,0.02819,97419.0,97418.0,0.051271]
[1732503490939,0.02327721,97419.0,97418.0,0.051271]
[1732503491331,0.02327721,97419.0,97418.0,0.051671]
[1732503491538,0.02337836,97419.0,97418.0,0.051671]
[1732503491940,0.00010115,97419.0,97418.0,0.051671]
[1732503492936,0.00010115,97419.0,97418.0,0.62476751]
[1732503493145,0.00010115,97419.0,97418.0,0.62476596]
[1732503493341,0.04986057,97430.0,97419.0,0.00089885]
[1732503493649,0.13676,97431.0,97420.0,0.0707793]
[1732503493948,0.13676,97431.0,97430.0,0.0004]
[1732503494138,0.13276,97431.0,97430.0,0.0004]
[1732503494340,7.2e-05,97431.0,97430.0,0.0004]
[1732503494948,0.00786765,97431.0,97430.0,0.0004]
[1732503495149,0.051261,97437.0,97430.0,0.0004]
[1732503495350,0.0305,97436.0,97435.0,0.051261]
[1732503495546,0.0255,97436.0,97435.0,0.051261]
[1732503496035,0.02558212,97436.0,97435.0,0.051261]
[1732503498643,8.212e-05,97436.0,97435.0,0.051261]
[1732503499345,0.15364345,97436.0,97435.0,0.051261]
[1732503500245,8.212e-05,97436.0,97435.0,0.051261]
[1732503505344,8.212e-05,97436.0,97435.0,0.412061]
[1732503507951,0.15356133,97441.0,97439.0,0.05126]
[1732503508154,0.15164345,97440.0,97439.0,0.29741535]
[1732503508346,0.15640135,97440.0,97439.0,0.29741535]
[1732503508851,0.15652825,97440.0,97439.0,0.29741535]
[1732503510451,0.0078848,97440.0,97439.0,0.29741535]
[1732503512154,0.0078848,97440.0,97439.0,0.05126]
[1732503512350,0.05773776,97440.0,97439.0,0.05126]
[1732503512751,0.05773776,97440.0,97435.0,0.3608]
[1732503513060,0.05260086,97439.0,97435.0,0.3608]
[1732503513261,0.0077579,97438.0,97436.0,0.051261]
[1732503513461,0.0001269,97440.0,97436.0,0.051261]
[1732503513462,0.0077579,97437.0,97436.0,0.051261]
[1732503520057,0.007933,97437.0,97436.0,0.051261]
[1732503520251,0.05126,97438.0,97436.0,0.051261]
[1732503520458,0.05126,97438.0,97437.0,0.24616582]
[1732503520666,0.05126,97438.0,97437.0,0.24656582]
[1732503520856,0.05918631,97438.0,97437.0,0.24656582]
[1732503521558,0.05918631,97438.0,97437.0,0.0004]
[1732503521863,0.05918631,97438.0,97437.0,0.24656624]
[1732503522064,0.05918631,97438.0,97437.0,0.0004]
[1732503522265,0.05918631,97438.0,97437.0,0.051661]
[1732503522758,0.05126,97438.0,97437.0,0.051661]
[1732503523060,0.05909122,97438.0,97437.0,0.051661]
[1732503526463,0.05903063,97438.0,97437.0,0.051661]
[1732503527259,0.05903063,97438.0,97437.0,0.29782646]
[1732503527572,0.05126,97438.0,97437.0,0.051661]
[1732503527954,0.10111325,97438.0,97437.0,0.051661]
[1732503528965,0.23565405,97438.0,97437.0,0.051661]
[1732503529166,0.2855073,97438.0,97437.0,0.051661]
[1732503529361,0.29325998,97438.0,97437.0,0.051661]
[1732503529569,0.29326003,97438.0,97437.0,0.051661]
[1732503529864,0.10886598,97438.0,97437.0,0.051661]
[1732503530059,0.19213877,97438.0,97437.0,0.051661]
[1732503530462,0.23423929,97438.0,97437.0,0.051661]
[1732503530762,0.04985299,97438.0,97437.0,0.051661]
[1732503530959,0.18438604,97438.0,97437.0,0.051661]
[1732503531362,0.04985299,97439.0,97437.0,0.051661]
[1732503531571,0.23420608,97438.0,97437.0,0.051661]
[1732503531766,0.18435309,97438.0,97437.0,0.051261]
[1732503532666,0.23420608,97439.0,97437.0,0.051261]
[1732503532866,0.28546608,97438.0,97437.0,0.051261]
[1732503533067,0.10111299,97438.0,97437.0,0.051261]
[1732503533464,0.2932143,97438.0,97437.0,0.051261]
[1732503533968,0.10886121,97438.0,97437.0,0.051261]
[1732503534569,0.05126,97438.0,97437.0,0.051261]
[1732503535371,0.05900676,97438.0,97437.0,0.051261]
[1732503536964,0.00774676,97438.0,97435.0,0.66856679]
[1732503537172,0.0001269,97440.0,97435.0,0.3608]
[1732503537173,0.051261,97436.0,97435.0,0.3608]
[1732503537361,0.05940776,97436.0,97435.0,0.3608]
[1732503537568,0.051661,97436.0,97435.0,0.3608]
[1732503539481,0.051661,97436.0,97435.0,0.051262]
[1732503542476,0.10151506,97436.0,97435.0,0.051262]
[1732503543575,0.23601409,97436.0,97435.0,0.051262]
[1732503543773,0.28586815,97436.0,97435.0,0.051262]
[1732503544476,0.23460715,97436.0,97435.0,0.051262]
[1732503545183,0.04525406,97436.0,97435.0,0.051262]
[1732503545371,0.0001269,97440.0,97439.0,0.05126]
[1732503545566,0.04042493,97440.0,97439.0,0.05126]
[1732503545766,0.0001269,97440.0,97439.0,0.05166]
[1732503546174,0.3608,97456.0,97439.0,0.05166]
[1732503546175,0.18436507,97446.0,97440.0,0.0088731]
[1732503546475,0.05125,97457.0,97446.0,0.005]
[1732503546778,0.05125,97457.0,97456.0,0.0004]
[1732503546779,0.04124,97457.0,97456.0,0.0004]
[1732503547177,0.04132469,97457.0,97456.0,0.0004]
[1732503548576,0.04132469,97457.0,97456.0,8.89e-06]
[1732503550176,0.17764469,97457.0,97456.0,8.89e-06]
[1732503552076,0.17264469,97457.0,97456.0,8.89e-06]
[1732503552276,0.16764469,97457.0,97456.0,8.89e-06]
[1732503553977,8.469e-05,97457.0,97456.0,8.89e-06]
[1732503554175,0.0399159,97458.0,97457.0,0.05516531]
[1732503554377,0.218868,97462.0,97457.0,0.05125]
[1732503554578,0.218868,97462.0,97457.0,0.05165]
[1732503554778,0.082548,97462.0,97461.0,0.051248]
[1732503555382,0.08265543,97462.0,97461.0,0.051248]
[1732503555580,0.09040399,97462.0,97461.0,0.051248]
[1732503555775,0.09040399,97462.0,97461.0,0.051648]
[1732503556579,0.13161407,97462.0,97461.0,0.0004]
[1732503557681,0.12386551,97462.0,97461.0,0.0004]
[1732503558685,0.12661646,97462.0,97461.0,0.0004]
[1732503558879,0.15841646,97462.0,97461.0,0.0004]
[1732503559477,0.15066551,97462.0,97461.0,0.0004]
[1732503559679,0.45846551,97462.0,97461.0,0.0004]
[1732503559879,0.45846551,97462.0,97458.0,0.0004]
[1732503560079,0.45846551,97462.0,97434.0,0.24616915]
[1732503560080,0.051259,97441.0,97434.0,0.24616915]
[1732503560291,0.051263,97433.0,97432.0,0.24616915]
[1732503560585,0.051263,97432.0,97431.0,0.24616915]
[1732503560786,0.20489221,97432.0,97431.0,0.24616915]
[1732503560987,0.20568333,97432.0,97431.0,0.24616915]
[1732503561982,0.00079112,97432.0,97429.0,0.051265]
[1732503562176,0.051265,97430.0,97429.0,0.051265]
[1732503562378,0.05205612,97430.0,97429.0,0.051265]
[1732503563789,0.00079112,97430.0,97429.0,0.051265]
[1732503564088,0.12367509,97430.0,97429.0,0.35903179]
[1732503564284,0.00079112,97430.0,97429.0,0.051265]
[1732503564689,0.15442033,97430.0,97429.0,0.29744598]
[1732503565489,0.00079112,97430.0,97429.0,0.29744598]
[1732503565692,0.15439047,97430.0,97429.0,0.29744598]
[1732503565889,0.05064782,97430.0,97429.0,0.051265]
[1732503566604,0.15439132,97430.0,97429.0,0.29744598]
[1732503566896,0.30799152,97430.0,97429.0,0.29744043]
[1732503567090,0.05064769,97430.0,97429.0,0.051265]
[1732503567294,0.00079112,97430.0,97429.0,0.051265]
[1732503567488,0.00079112,97430.0,97429.0,0.29744043]
[1732503567691,0.15439221,97430.0,97429.0,0.29744043]
[1732503567893,0.05205412,97433.0,97430.0,0.00020888]
[1732503568086,0.0496473,97432.0,97429.0,0.29744043]
[1732503568291,0.05048401,97431.0,97429.0,0.051265]
[1732503568490,0.0004,97430.0,97429.0,0.051265]
[1732503568992,0.0004,97430.0,97429.0,0.30064591]
[1732503568993,0.15400119,97430.0,97429.0,0.30064591]
[1732503569195,0.0004,97430.0,97429.0,0.30064591]
[1732503569393,0.0004,97430.0,97429.0,0.05447048]
[1732503569593,0.1539994,97430.0,97429.0,0.05447048]
[1732503569991,0.1539994,97430.0,97429.0,0.30065165]
[1732503570702,0.1539994,97430.0,97429.0,0.30065166]
[1732503571292,0.1539994,97430.0,97429.0,0.29744617]
[1732503571498,0.1539994,97430.0,97429.0,0.30065168]
[1732503572293,0.1539994,97430.0,97429.0,0.24938668]
[1732503572502,0.0004,97430.0,97429.0,0.00320551]
[1732503574503,0.051665,97430.0,97429.0,0.00320554]
[1732503575301,0.051665,97430.0,97428.0,0.30776679]
[1732503575502,0.12284904,97429.0,97428.0,0.30776679]
[1732503575801,0.12324904,97429.0,97428.0,0.58879615]
[1732503576008,0.12324904,97429.0,97428.0,0.30776679]
[1732503576599,0.12324904,97429.0,97428.0,0.58879564]
[1732503576903,0.12324904,97429.0,97427.0,0.00011881]
[1732503576904,0.051266,97428.0,97427.0,0.00011881]
[1732503577806,0.051666,97428.0,97427.0,0.00011881]
[1732503583102,0.10152756,97428.0,97427.0,0.00011881]
[1732503585011,0.051666,97428.0,97427.0,0.00011881]
[1732503585708,0.1015279,97428.0,97427.0,0.00011881]
[1732503585911,0.051666,97428.0,97427.0,0.00011881]
[1732503586926,0.23598544,97428.0,97427.0,0.00011881]
[1732503587108,0.28584728,97428.0,97427.0,0.00011881]
[1732503590310,0.10152784,97428.0,97427.0,0.1847749]
[1732503591108,0.10152836,97428.0,97427.0,0.00011881]
[1732503593612,0.13192836,97428.0,97427.0,0.00011881]
[1732503595211,0.15244445,97428.0,97427.0,0.00011881]
[1732503599313,0.15244445,97428.0,97427.0,0.18477816]
[1732503599508,0.15244445,97428.0,97427.0,0.18478203]
[1732503600220,0.15244445,97428.0,97427.0,0.00011881]
[1732503600904,0.15244546,97428.0,97427.0,0.00011881]
[1732503601309,0.2887653,97428.0,97427.0,0.00011881]
[1732503602814,0.2887653,97428.0,97427.0,0.05138481]
[1732503602815,0.0707793,97428.0,97427.0,0.05138481]
[1732503603019,0.1535444,97428.0,97427.0,0.658381]
[1732503603318,0.1535444,97430.0,97427.0,0.36412422]
[1732503603510,0.14854441,97430.0,97429.0,0.051265]
[1732503603710,0.14854441,97431.0,97430.0,0.051265]
[1732503603922,0.12284749,97433.0,97431.0,0.00500001]
[1732503604215,0.21519332,97462.0,97458.0,0.05125]
[1732503604216,0.27557779,97460.0,97458.0,0.05125]
[1732503604426,0.03983422,97459.0,97458.0,0.05125]
[1732503604611,0.02984423,97459.0,97458.0,0.05125]
[1732503605010,0.051249,97460.0,97458.0,0.29737062]
[1732503605212,0.051249,97460.0,97459.0,0.24612062]
[1732503605515,0.051249,97460.0,97458.0,0.05125]
[1732503605712,0.0717655,97460.0,97458.0,0.05125]
[1732503605913,0.0004,97459.0,97458.0,0.05125]
[1732503610016,0.0004,97459.0,97453.0,0.3608]
[1732503610017,0.0004,97459.0,97457.0,0.30765078]
[1732503610321,0.051251,97456.0,97455.0,0.30765078]
[1732503610522,0.13624,97456.0,97454.0,0.30765078]
[1732503610817,0.13624,97456.0,97452.0,0.051253]
[1732503610818,0.051252,97453.0,97452.0,0.051253]
[1732503611020,0.0004,97455.0,97454.0,0.051252]
[1732503611219,0.13624,97456.0,97454.0,0.051252]
[1732503611220,0.187491,97456.0,97454.0,0.051252]
[1732503611421,0.187491,97456.0,97454.0,0.3600939]
[1732503611621,0.187491,97456.0,97455.0,0.30765078]
[1732503611622,0.13624,97456.0,97455.0,0.30765078]
[1732503611821,0.13624,97456.0,97454.0,0.05244312]
[1732503612023,0.13123,97456.0,97455.0,0.00320462]
[1732503612223,0.13123,97456.0,97454.0,0.05244312]
[1732503612521,0.051249,97461.0,97454.0,0.05244312]
[1732503612522,0.051249,97461.0,97459.0,0.051249]
[1732503613020,0.13634743,97462.0,97460.0,0.00119112]
[1732503613224,0.13134743,97462.0,97461.0,0.051248]
[1732503613925,0.03806597,97464.0,97463.0,0.051247]
[1732503614220,0.00013246,97464.0,97463.0,0.051247]
[1732503614428,0.05137946,97464.0,97463.0,0.051247]
[1732503614723,0.051248,97462.0,97461.0,0.00119112]
[1732503614928,0.051248,97462.0,97459.0,0.66843544]
[1732503615521,0.00013246,97464.0,97463.0,0.051247]
[1732503619321,0.08827366,97465.0,97464.0,0.00486754]
[1732503619530,0.051248,97461.0,97460.0,0.18458004]
[1732503619727,0.10108965,97461.0,97460.0,0.18458004]
[1732503619929,0.10108965,97461.0,97459.0,0.3608]
[1732503619930,0.23455338,97461.0,97459.0,0.59662904]
[1732503620123,0.04984165,97460.0,97459.0,0.412049]
[1732503620428,0.0004,97460.0,97459.0,0.41525337]
[1732503621226,0.0004,97460.0,97459.0,0.412049]
[1732503622437,0.0004,97460.0,97459.0,0.41525339]
[1732503625235,0.0004,97460.0,97459.0,0.72336236]
[1732503625834,0.0004,97460.0,97459.0,0.31131336]
[1732503626040,0.0004,97460.0,97459.0,0.31084984]
[1732503626236,0.051249,97459.0,97458.0,0.3732382]
[1732503626434,0.051249,97459.0,97458.0,0.06559]
[1732503626633,0.051649,97459.0,97458.0,0.06559]
[1732503629638,0.051649,97459.0,97458.0,0.3732382]
[1732503629942,0.046649,97459.0,97458.0,0.68133199]
[1732503630239,0.046649,97459.0,97458.0,0.68133344]
[1732503630435,0.046649,97459.0,97458.0,0.37368757]
[1732503630739,8.09e-05,97463.0,97462.0,0.051248]
[1732503630937,0.412047,97464.0,97463.0,0.00452909]
[1732503630938,0.3608,97464.0,97463.0,0.00452909]
[1732503631243,0.3608,97474.0,97472.0,0.051242]
[1732503631542,0.1267109,97473.0,97472.0,0.051242]
[1732503631729,0.0205165,97476.0,97469.0,0.30762754]
[1732503631947,0.0205165,97476.0,97464.0,0.3608]
[1732503631948,0.0205165,97476.0,97474.0,0.051241]
[1732503632137,0.04995321,97475.0,97474.0,0.412041]
[1732503632829,0.00011642,97475.0,97474.0,0.412041]
[1732503633138,0.03718873,97477.0,97475.0,0.00488358]
[1732503633331,0.18431173,97487.0,97475.0,0.30762754]
[1732503633535,0.3608,97488.0,97486.0,0.23577224]
[1732503633536,0.54511173,97488.0,97486.0,0.23577224]
[1732503633733,0.04982949,97487.0,97486.0,0.23577224]
[1732503634050,0.04982949,97487.0,97486.0,0.235769]
[1732503634341,0.04992228,97487.0,97486.0,0.051235]
[1732503634841,0.04503228,97487.0,97486.0,0.051235]
[1732503636438,0.04003228,97487.0,97486.0,0.051235]
[1732503636840,0.04003228,97487.0,97486.0,0.078685]
[1732503637839,0.04003228,97487.0,97486.0,0.086275]
[1732503640139,9.279e-05,97487.0,97486.0,0.086275]
[1732503641143,9.279e-05,97487.0,97486.0,0.089265]
[1732503643541,9.279e-05,97487.0,97486.0,0.108505]
[1732503647852,0.08948759,97488.0,97487.0,0.00490721]
[1732503648144,0.08458038,97488.0,97486.0,0.116705]
[1732503648547,0.03334638,97488.0,97486.0,0.116705]
[1732503648843,0.1535893,97490.0,97489.0,0.051233]
[1732503649045,0.1535893,97494.0,97493.0,0.051231]
[1732503649246,0.1535893,97494.0,97486.0,0.06547]
[1732503649247,0.5143893,97497.0,97494.0,0.00987635]
[1732503649447,0.38821803,97497.0,97495.0,0.05123]
[1732503649643,0.38821803,97497.0,97496.0,0.00159112]
[1732503650345,0.38830705,97497.0,97496.0,0.00159112]
[1732503650853,0.0373834,97497.0,97496.0,0.00159112]
[1732503651149,8.902e-05,97497.0,97496.0,0.00159112]
[1732503651341,0.1,97500.0,97498.0,0.051229]
[1732503651541,0.09508902,97500.0,97498.0,0.051229]
[1732503651741,0.09508902,97500.0,97499.0,0.00159112]
[1732503652337,0.09508902,97500.0,97499.0,0.00168026]
[1732503652338,0.09520196,97500.0,97499.0,0.00168026]
[1732503653556,0.09019196,97500.0,97499.0,0.00168026]
[1732503654549,0.09019196,97500.0,97499.0,0.00927026]
[1732503655154,0.27452693,97500.0,97499.0,0.00927026]
[1732503655448,0.32434667,97500.0,97499.0,0.00927026]
[1732503656049,0.14001267,97500.0,97499.0,0.19377363]
[1732503656247,0.32434667,97500.0,97499.0,0.19377363]
[1732503656445,0.14001267,97500.0,97499.0,0.19377363]
[1732503657141,0.14001267,97500.0,97499.0,0.00927026]
[1732503657345,0.14001267,97500.0,97499.0,0.02847026]
[1732503658559,0.14001267,97500.0,97499.0,0.05591026]
[1732503659449,0.14001267,97500.0,97499.0,0.0591134]
[1732503659942,0.14001209,97500.0,97499.0,0.0591134]
[1732503660249,0.14001209,97500.0,97499.0,0.4199134]
[1732503660453,0.13501209,97500.0,97499.0,0.4199134]
[1732503660645,0.13501209,97500.0,97499.0,0.41671026]
[1732503660850,0.13501209,97500.0,97499.0,0.66591773]
[1732503661054,0.08519196,97500.0,97499.0,0.66591773]
[1732503661747,0.13500948,97500.0,97499.0,0.66591773]
[1732503662048,0.13500948,97500.0,97499.0,1.09742926]
[1732503662049,0.08519196,97500.0,97499.0,1.09742926]
[1732503664448,0.12288648,97510.0,97508.0,0.051223]
[1732503664754,0.12288648,97516.0,97514.0,0.05122]
[1732503664950,0.12288648,97521.0,97519.0,0.051218]
[1732503665151,0.15428648,97523.0,97521.0,0.051217]
[1732503665351,0.12288648,97524.0,97523.0,0.061216]
[1732503665545,8.549e-05,97524.0,97523.0,0.37030718]
[1732503665746,8.549e-05,97524.0,97523.0,0.3751006]
[1732503666555,0.05130049,97524.0,97523.0,0.3751006]
[1732503666861,0.05130049,97524.0,97523.0,0.37510073]
[1732503667059,8.549e-05,97524.0,97523.0,0.37510073]
[1732503667355,8.549e-05,97524.0,97523.0,0.38269073]
[1732503667558,8.549e-05,97524.0,97523.0,0.3876883]
[1732503667759,8.549e-05,97524.0,97523.0,0.39089075]